bitfinex-derivatives/quotes_ETHF0:USTF0_20250426
["timestamp","ask_amount","ask_price","bid_price","bid_amount"]
[1745650919440,1.1075,1805.1,1805.0,6.02352]
[1745650919641,2.6954,1805.1,1805.0,6.02352]
[1745650919846,2.6954,1805.1,1805.0,7.69032]
[1745650920145,2.6954,1805.1,1805.0,4.8746]
[1745650920740,2.6954,1805.1,1805.0,5.98216]
[1745650921740,2.6954,1805.1,1805.0,2.77436]
[1745650922853,1.5879,1805.1,1804.9,6.8018]
[1745650923048,2.72346,1805.0,1804.9,7.9094]
[1745650923247,4.8237,1805.0,1804.4,3.2078]
[1745650923454,1.10791,1804.5,1804.4,6.8008]
[1745650923751,1.10791,1804.5,1804.4,3.593]
[1745650924440,2.72381,1804.5,1804.4,4.70093]
[1745650924648,1.6159,1804.5,1804.4,6.42763]
[1745650926645,2.82575,1804.6,1804.5,1.10787]
[1745650926846,2.82575,1804.6,1804.5,2.80727]
[1745650927748,2.82575,1804.6,1804.5,3.63977]
[1745650928847,1.7179,1804.6,1804.5,3.63977]
[1745650929647,2.82571,1804.6,1804.5,3.63977]
[1745650930441,2.82571,1804.6,1804.5,4.49967]
[1745650930647,1.7179,1804.6,1804.5,4.49967]
[1745650930841,6.97773,1804.8,1804.6,1.10781]
[1745650931042,9.47613,1804.8,1804.7,1.6582]
[1745650931949,8.3684,1804.8,1804.7,2.76595]
[1745650932150,5.87,1804.8,1804.7,2.76595]
[1745650933142,6.90448,1804.9,1804.7,2.76595]
[1745650933349,6.90448,1804.9,1804.8,1.6985]
[1745650934954,3.69668,1804.9,1804.8,2.80619]
[1745650935253,1.10761,1805.0,1804.8,2.80619]
[1745650935450,1.10761,1805.0,1804.9,1.729]
[1745650935653,6.97755,1805.1,1805.0,1.10756]
[1745650935853,6.97755,1805.1,1805.0,1.95716]
[1745650936054,5.87,1805.1,1805.0,1.95716]
[1745650936261,5.87,1805.1,1805.0,3.68616]
[1745650937658,6.9775,1805.1,1805.0,3.68616]
[1745650937864,8.6968,1805.1,1805.0,2.5786]
[1745650938258,1.10762,1804.9,1804.8,1.6578]
[1745650938450,1.10769,1804.8,1804.7,4.70174]
[1745650938850,1.10769,1804.8,1804.7,3.594]
[1745650939354,2.82699,1804.8,1804.7,3.594]
[1745650940157,2.82699,1804.8,1804.7,4.70175]
[1745650941157,1.7193,1804.8,1804.7,4.70175]
[1745650941456,2.82699,1804.8,1804.7,4.70175]
[1745650942862,1.7193,1804.8,1804.7,4.70175]
[1745650943356,2.82699,1804.8,1804.7,4.70175]
[1745650947455,3.64009,1804.8,1804.7,4.70175]
[1745650948358,1.10781,1804.6,1804.5,3.594]
[1745650949060,1.10781,1804.6,1804.5,4.70187]
[1745650949061,1.89661,1804.6,1804.5,4.70187]
[1745650949663,1.92082,1804.8,1804.7,1.10775]
[1745650949851,0.8131,1804.8,1804.7,1.10775]
[1745650950057,4.31547,1804.9,1804.7,1.10775]
[1745650950257,5.93687,1804.9,1804.8,1.6158]
[1745650952765,5.93687,1804.9,1804.8,2.72349]
[1745650953166,3.2078,1804.9,1804.8,2.72349]
[1745650953761,4.31542,1804.9,1804.8,2.72349]
[1745650953962,5.95982,1804.9,1804.8,2.72349]
[1745650954465,3.2078,1804.9,1804.8,2.72349]
[1745650954666,2.4895,1805.1,1805.0,1.10756]
[1745650954968,4.0081,1805.2,1805.1,1.1075]
[1745650955169,5.6525,1805.2,1805.1,1.1075]
[1745650955965,3.2078,1805.2,1805.1,1.1075]
[1745650956964,1.6349,1805.4,1805.3,1.10738]
[1745650957270,6.008,1805.5,1805.3,1.10734]
[1745650957568,7.6429,1805.5,1805.4,1.6044]
[1745650958967,1.10732,1805.4,1805.3,0.8408]
[1745650959167,1.10738,1805.3,1805.2,2.4747]
[1745650960266,1.6224,1805.4,1805.1,4.4007]
[1745650960469,1.10744,1805.2,1805.1,4.4007]
[1745650961462,1.10744,1805.2,1805.1,6.0033]
[1745650961667,1.10744,1805.2,1805.1,7.1108]
[1745650961869,1.6224,1805.4,1805.1,6.0033]
[1745650962061,1.6224,1805.4,1805.3,1.10738]
[1745650962467,1.6224,1805.4,1805.3,2.76988]
[1745650962775,2.8002,1805.5,1805.3,2.76988]
[1745650962972,2.8002,1805.5,1805.4,1.6625]
[1745650963277,1.6929,1805.5,1805.4,2.76982]
[1745650963679,2.74244,1805.6,1805.4,2.76982]
[1745650963875,2.74244,1805.6,1805.5,1.6625]
[1745650964173,2.74244,1805.6,1805.2,0.7911]
[1745650964174,1.10732,1805.4,1805.3,1.10735]
[1745650964376,1.10732,1805.4,1805.3,2.76985]
[1745650964874,2.7425,1805.5,1805.3,2.76985]
[1745650966370,1.10732,1805.4,1805.3,1.6625]
[1745650966571,4.47062,1805.4,1805.3,2.76988]
[1745650968681,3.60142,1805.4,1805.3,2.76988]
[1745650969482,4.31509,1805.5,1805.3,2.76988]
[1745650969671,5.97539,1805.5,1805.4,1.6828]
[1745650971280,5.97539,1805.5,1805.4,2.79012]
[1745650971677,2.76759,1805.5,1805.4,2.79012]
[1745650972079,1.6603,1805.5,1805.4,2.79012]
[1745650972281,2.75663,1805.6,1805.5,1.10726]
[1745650972480,2.75663,1805.6,1805.5,3.60226]
[1745650972682,4.36033,1805.6,1805.5,3.60226]
[1745650974281,4.36033,1805.6,1805.5,2.495]
[1745650974580,4.36033,1805.6,1805.5,1.6957]
[1745650975682,4.36033,1805.6,1805.5,2.80296]
[1745650976588,4.31483,1805.9,1805.5,9.46382]
[1745650976880,3.3484,1806.0,1805.9,1.10701]
[1745650977085,6.9769,1806.1,1805.7,2.76784]
[1745650977086,1.1069,1806.1,1805.8,6.0015]
[1745650977284,1.1069,1806.1,1805.9,2.5048]
[1745650977473,4.45527,1806.2,1806.0,2.81521]
[1745650977677,4.45527,1806.2,1806.1,1.7083]
[1745650978084,3.3484,1806.2,1806.1,2.81519]
[1745650978686,4.45523,1806.2,1806.1,2.81519]
[1745650979280,3.3484,1806.2,1806.1,2.81519]
[1745650979776,4.45523,1806.2,1806.1,2.81519]
[1745650979978,1.6878,1806.2,1806.1,2.81519]
[1745650980174,4.31461,1806.3,1806.2,1.10683]
[1745650980384,5.98701,1806.3,1806.2,1.7324]
[1745650980585,1.10681,1806.3,1806.2,1.7324]
[1745650980789,6.86001,1806.3,1806.2,1.7324]
[1745650981579,3.65221,1806.3,1806.2,1.7324]
[1745650981782,6.86001,1806.3,1806.2,1.7324]
[1745650981983,5.7532,1806.3,1806.2,2.83923]
[1745650982387,6.85997,1806.3,1806.2,3.4483]
[1745650983488,3.65217,1806.3,1806.2,3.4483]
[1745650984283,6.85997,1806.3,1806.2,3.4483]
[1745650985593,6.85997,1806.3,1806.2,2.5782]
[1745650985976,3.65217,1806.3,1806.2,2.5782]
[1745650986585,3.65217,1806.3,1806.2,3.68503]
[1745650986787,3.65217,1806.3,1806.2,4.50723]
[1745650987385,3.65217,1806.3,1806.2,3.4004]
[1745650987786,3.65217,1806.3,1806.2,1.7324]
[1745650996798,3.65217,1806.3,1806.2,3.411]
[1745650996997,3.65217,1806.3,1806.2,4.51783]
[1745650998995,0.8352,1806.4,1806.3,1.10677]
[1745650999194,3.58698,1806.5,1806.3,1.7345]
[1745650999393,3.58698,1806.5,1806.4,1.1067]
[1745651000496,1.6874,1806.5,1806.4,1.1067]
[1745651000794,3.2078,1806.6,1806.5,1.10664]
[1745651000993,3.2078,1806.6,1806.5,4.55394]
[1745651004999,3.2078,1806.6,1806.5,1.10664]
[1745651005193,1.10675,1806.4,1806.3,3.589]
[1745651005888,3.57575,1806.4,1806.3,3.589]
[1745651006094,1.10679,1806.3,1805.9,3.2078]
[1745651006401,2.77069,1806.3,1806.0,5.1954]
[1745651006602,2.77069,1806.3,1806.1,1.10684]
[1745651006796,1.6639,1806.2,1806.1,1.10684]
[1745651007297,1.91185,1806.4,1806.2,1.10678]
[1745651007497,3.57575,1806.4,1806.1,2.4776]
[1745651007692,2.469,1806.4,1806.3,1.10677]
[1745651007899,0.868,1806.5,1806.3,3.589]
[1745651008205,0.868,1806.5,1806.4,1.1067]
[1745651008504,2.5309,1806.5,1806.4,1.1067]
[1745651008703,5.11948,1806.6,1806.5,1.10664]
[1745651009203,5.6758,1806.6,1806.5,2.77654]
[1745651009405,6.78238,1806.6,1806.5,2.77654]
[1745651009605,6.78238,1806.6,1806.5,1.6699]
[1745651009903,1.10664,1806.5,1806.4,0.8281]
[1745651010103,2.76954,1806.5,1806.4,1.1067]
[1745651010996,2.76954,1806.5,1806.4,2.8174]
[1745651011604,1.6629,1806.5,1806.4,2.8174]
[1745651012706,1.10656,1806.7,1806.5,1.1066]
[1745651012908,1.10658,1806.6,1806.5,1.1066]
[1745651013405,1.7212,1806.7,1806.6,1.10658]
[1745651013704,2.82772,1806.7,1806.6,1.10658]
[1745651014105,1.7212,1806.7,1806.6,1.10658]
[1745651014809,2.82772,1806.7,1806.6,1.10658]
[1745651015106,2.82772,1806.7,1806.5,1.10662]
[1745651015306,1.7326,1806.6,1806.5,1.10662]
[1745651016307,2.83918,1806.6,1806.5,1.10662]
[1745651016603,1.7326,1806.6,1806.5,1.10662]
[1745651018009,2.83918,1806.6,1806.4,2.81736]
[1745651018211,2.83918,1806.6,1806.4,1.7107]
[1745651018402,2.83918,1806.6,1806.4,2.81738]
[1745651018602,1.6604,1806.5,1806.4,2.81738]
[1745651018910,2.4538,1806.5,1806.4,2.81738]
[1745651019808,1.10656,1806.7,1806.5,1.1066]
[1745651020009,3.50136,1806.7,1806.5,1.1066]
[1745651020610,0.7934,1806.7,1806.6,1.10658]
[1745651020817,2.3948,1806.7,1806.6,1.10658]
[1745651021309,2.3948,1806.7,1806.6,2.71208]
[1745651022309,1.10658,1806.6,1806.5,1.90319]
[1745651022501,1.6014,1806.6,1806.5,1.90319]
[1745651022708,2.70798,1806.6,1806.5,1.90319]
[1745651022908,1.6014,1806.6,1806.5,1.90319]
[1745651025614,1.6014,1806.6,1806.5,3.55619]
[1745651028315,0.7934,1806.7,1806.6,1.10658]
[1745651028509,0.7934,1806.7,1806.6,2.72368]
[1745651028712,2.5473,1806.8,1806.7,1.10652]
[1745651029013,2.5473,1806.8,1806.7,2.72362]
[1745651045214,2.5473,1806.8,1806.7,1.10652]
[1745651046321,1.10652,1806.7,1806.6,3.588]
[1745651046517,2.75892,1806.7,1806.6,3.588]
[1745651046724,1.6524,1806.7,1806.6,4.69458]
[1745651047918,2.75892,1806.7,1806.6,4.69458]
[1745651048118,1.6524,1806.7,1806.6,4.69458]
[1745651048418,1.6524,1806.7,1806.6,3.588]
[1745651048922,2.75892,1806.7,1806.6,4.69458]
[1745651049415,2.75892,1806.7,1806.6,3.588]
[1745651050417,2.75892,1806.7,1806.6,4.69458]
[1745651056429,1.6524,1806.7,1806.6,4.69458]
[1745651057027,1.6524,1806.7,1806.6,6.26808]
[1745651059435,0.8463,1806.8,1806.7,1.10652]
[1745651059730,0.8463,1806.8,1806.7,2.81722]
[1745651059931,2.5572,1806.8,1806.7,2.81722]
[1745651060531,3.66366,1806.8,1806.7,2.81722]
[1745651061227,3.66366,1806.8,1806.7,1.10652]
[1745651061426,3.66366,1806.8,1806.6,3.588]
[1745651061427,2.5572,1806.8,1806.6,3.588]
[1745651061630,1.7109,1806.7,1806.6,4.69458]
[1745651062633,2.81742,1806.7,1806.6,4.69458]
[1745651064338,3.2078,1807.9,1806.7,2.76631]
[1745651064639,3.42834,1807.6,1807.2,3.2078]
[1745651064840,1.10612,1807.4,1807.2,7.90001]
[1745651065041,3.4122,1807.3,1807.2,7.90001]
[1745651067839,4.51835,1807.3,1807.2,6.7938]
[1745651068037,4.51835,1807.3,1807.2,3.586]
[1745651068233,9.51835,1807.3,1807.2,3.586]
[1745651068429,1.10629,1807.1,1806.9,5.51754]
[1745651068640,1.6178,1807.0,1806.9,7.20014]
[1745651068835,3.3191,1807.0,1806.9,6.375]
[1745651069834,3.3191,1807.0,1806.9,5.2686]
[1745651069835,4.42544,1807.0,1806.9,5.2686]
[1745651070041,3.3191,1807.0,1806.9,1.6826]
[1745651070239,3.3191,1807.0,1806.9,2.789]
[1745651072244,3.3191,1807.0,1806.8,3.586]
[1745651072437,1.10646,1806.8,1806.7,3.2078]
[1745651072834,1.10646,1806.8,1806.7,4.31432]
[1745651073244,6.41446,1806.8,1806.7,4.31432]
[1745651073639,6.41446,1806.8,1806.7,1.10652]
[1745651074939,5.308,1806.8,1806.5,6.7938]
[1745651075144,1.10658,1806.6,1806.5,3.2078]
[1745651075548,3.68058,1806.6,1806.5,3.2078]
[1745651076140,8.98858,1806.6,1806.5,3.2078]
[1745651080657,6.41458,1806.6,1806.5,3.2078]
[1745651080858,6.41458,1806.6,1806.5,4.8916]
[1745651081154,6.41458,1806.6,1806.5,5.741]
[1745651081356,6.41458,1806.6,1806.5,6.84764]
[1745651082243,5.308,1806.6,1806.5,6.84764]
[1745651082654,6.41458,1806.6,1806.5,6.84764]
[1745651083050,5.308,1806.6,1806.5,6.84764]
[1745651083248,6.41458,1806.6,1806.5,6.84764]
[1745651084551,5.308,1806.6,1806.5,6.84764]
[1745651084947,6.41458,1806.6,1806.5,6.84764]
[1745651085548,5.308,1806.6,1806.5,6.84764]
[1745651085950,6.41458,1806.6,1806.5,6.84764]
[1745651086950,5.308,1806.6,1806.5,6.84764]
[1745651087647,6.41458,1806.6,1806.5,6.84764]
[1745651088860,5.308,1806.6,1806.5,6.84764]
[1745651089253,6.41458,1806.6,1806.5,6.84764]
[1745651089454,1.1067,1806.4,1806.3,9.50323]
[1745651090153,8.0627,1806.4,1806.3,9.50323]
[1745651090457,6.956,1806.4,1806.3,9.50323]
[1745651090852,8.0627,1806.4,1806.3,9.50323]
[1745651091556,6.956,1806.4,1806.3,9.50323]
[1745651093050,8.0627,1806.4,1806.3,8.69133]
[1745651093658,8.0627,1806.4,1806.3,6.7938]
[1745651094351,8.0627,1806.4,1806.3,8.4879]
[1745651095058,8.0627,1806.4,1806.3,9.59467]
[1745651095359,6.956,1806.4,1806.3,9.59467]
[1745651095952,5.308,1806.4,1806.3,9.59467]
[1745651099969,2.7674,1806.0,1805.0,7.39726032]
[1745651100255,3.2078,1805.5,1805.1,5.983]
[1745651100461,1.10738,1805.3,1805.2,1.5957]
[1745651100669,1.10744,1805.2,1805.1,3.586]
[1745651100856,1.6515,1805.2,1805.0,8.99296032]
[1745651101062,2.76809,1805.6,1805.4,1.10729]
[1745651101063,3.2078,1805.6,1805.4,1.10729]
[1745651101261,3.2078,1805.6,1805.5,1.10726]
[1745651101763,4.31499,1805.6,1805.4,4.69329]
[1745651101963,3.2078,1805.6,1805.4,4.69329]
[1745651102152,8.5158,1805.6,1805.5,1.5957]
[1745651102555,8.5158,1805.6,1805.5,2.70296]
[1745651103061,8.5158,1805.6,1805.5,3.55096]
[1745651105152,3.2078,1805.6,1805.5,3.55096]
[1745651107964,2.71997,1805.8,1805.6,1.10717]
[1745651108166,2.71997,1805.8,1805.6,2.75637]
[1745651108167,3.2078,1805.7,1805.6,2.75637]
[1745651108558,4.9392,1805.7,1805.6,2.75637]
[1745651108764,3.2078,1805.7,1805.6,2.75637]
[1745651109164,8.5158,1805.7,1805.6,2.75637]
[1745651110962,8.5158,1805.7,1805.6,3.59077]
[1745651111158,3.2078,1805.7,1805.6,3.59077]
[1745651112063,8.5158,1805.7,1805.6,3.59077]
[1745651113265,9.62293,1805.7,1805.6,1.6492]
[1745651113465,11.31873,1805.7,1805.6,1.10719]
[1745651114465,10.2116,1805.7,1805.6,1.10719]
[1745651118370,10.2116,1805.7,1805.6,2.83849]
[1745651119470,8.5158,1805.7,1805.6,2.83849]
[1745651120766,8.5158,1805.7,1805.0,3.2078]
[1745651120767,16.28368,1805.7,1805.0,3.2078]
[1745651120969,3.2078,1805.4,1805.3,1.10738]
[1745651121169,9.62315,1805.4,1805.2,6.4482]
[1745651121371,2.3762,1805.3,1805.2,6.4482]
[1745651121670,3.1812,1805.3,1805.2,6.4482]
[1745651122176,9.59658,1805.3,1805.2,3.642]
[1745651124171,1.1075,1805.2,1805.0,1.10754]
[1745651124368,1.1075,1805.2,1805.0,3.642]
[1745651124369,4.31532,1805.1,1805.0,3.642]
[1745651125074,9.62332,1805.1,1805.0,3.642]
[1745651127774,14.62332,1805.1,1805.0,3.642]
[1745651127977,1.10762,1804.9,1804.8,1.10768]
[1745651128175,9.62342,1804.9,1804.8,1.10768]
[1745651128580,10.47632,1804.9,1804.8,1.10768]
[1745651129584,9.3687,1804.9,1804.8,1.10768]
[1745651129878,9.3687,1804.9,1804.8,2.79628]
[1745651130081,11.0595,1804.9,1804.8,2.79628]
[1745651132783,8.5158,1804.9,1804.8,2.79628]
[1745651133587,5.308,1804.9,1804.8,2.79628]
[1745651134486,1.722,1804.9,1804.8,7.79628]
[1745651135088,5.6237,1805.3,1805.2,1.10744]
[1745651135778,6.73108,1805.3,1805.2,1.10744]
[1745651136184,12.03908,1805.3,1805.2,1.10744]
[1745651138583,12.03908,1805.3,1805.1,5.3061]
[1745651138784,12.03908,1805.3,1805.2,1.5923]
[1745651139492,10.9317,1805.3,1805.2,2.69974]
[1745651140592,12.03908,1805.3,1805.2,2.69974]
[1745651140787,10.9317,1805.3,1805.2,2.69974]
[1745651142291,10.9317,1805.3,1805.1,4.75045]
[1745651142492,2.4775,1805.2,1805.1,4.75045]
[1745651143192,7.7855,1805.2,1805.1,6.49445]
[1745651144886,7.7855,1805.2,1805.1,4.75045]
[1745651145588,7.7855,1805.2,1805.1,6.49585]
[1745651145998,5.308,1805.2,1805.1,6.49585]
[1745651149798,7.0343,1805.2,1805.1,6.49585]
[1745651149998,5.308,1805.2,1805.1,6.49585]
[1745651152113,3.2078,1805.3,1805.2,1.10744]
[1745651152413,3.2078,1805.3,1805.2,3.60434]
[1745651153211,8.5158,1805.3,1805.2,3.60434]
[1745651159917,5.308,1805.3,1805.2,3.60434]
[1745651161215,3.2455,1805.6,1805.5,1.10726]
[1745651161416,3.2455,1805.6,1805.5,4.73626]
[1745651162120,8.5535,1805.6,1805.5,4.73626]
[1745651164622,8.5535,1805.6,1805.5,5.59666]
[1745651165526,5.308,1805.6,1805.5,5.59666]
[1745651166523,6.8925,1805.6,1805.5,5.59666]
[1745651167322,7.7115,1805.6,1805.5,5.59666]
[1745651170826,5.308,1805.6,1805.5,5.59666]
[1745651171727,7.0238,1805.6,1805.5,5.59666]
[1745651173329,5.308,1805.6,1805.5,8.80446]
[1745651173528,4.17771,1805.6,1805.5,13.80446]
[1745651173728,0.50153,1805.6,1805.5,13.80446]
[1745651173932,3.24516,1806.1,1806.0,1.10695]
[1745651174127,3.24516,1806.1,1806.0,4.69895]
[1745651174725,3.24516,1806.1,1806.0,6.43055]
[1745651176926,0.03736,1806.1,1806.0,6.43055]
[1745651177834,0.03736,1806.1,1806.0,11.43055]
[1745651178236,1.719,1806.4,1806.3,1.10677]
[1745651178434,1.719,1806.4,1806.3,4.69777]
[1745651179133,1.719,1806.4,1806.3,6.38137]
[1745651188532,1.719,1806.4,1806.3,4.69777]
[1745651188934,15.35578,1806.4,1805.8,3.591]
[1745651189140,4.31475,1806.0,1805.8,4.69803]
[1745651189336,1.5928,1805.9,1805.8,3.591]
[1745651189536,3.3241,1805.9,1805.8,3.591]
[1745651189740,3.3241,1805.9,1805.8,4.69807]
[1745651190138,8.6321,1805.9,1805.8,4.69807]
[1745651194639,5.308,1805.9,1805.8,4.69807]
[1745651195043,5.308,1805.9,1805.8,6.37907]
[1745651195239,3.2078,1806.0,1805.9,1.10701]
[1745651195547,3.2078,1806.0,1805.9,2.78801]
[1745651197036,3.3797,1806.1,1806.0,1.10695]
[1745651197236,6.5875,1806.1,1806.0,1.10695]
[1745651197837,3.2078,1806.1,1806.0,1.96355]
[1745651198037,3.2078,1806.1,1806.0,3.70845]
[1745651203239,4.8448,1806.3,1806.2,1.10683]
[1745651203444,4.8448,1806.3,1806.2,4.70883]
[1745651203647,3.2078,1806.3,1806.2,4.70883]
[1745651203846,1.7365,1806.4,1806.3,1.10677]
[1745651204040,1.7365,1806.4,1806.3,4.42267]
[1745651211452,1.7365,1806.4,1806.2,3.602]
[1745651211650,4.9373,1806.3,1806.2,3.601]
[1745651211848,4.9373,1806.3,1805.9,4.8201]
[1745651212047,3.2078,1806.1,1806.0,4.70795]
[1745651212555,4.8968,1806.1,1806.0,4.70795]
[1745651213150,6.997,1806.1,1806.0,4.70795]
[1745651214756,6.997,1806.1,1806.0,5.49965]
[1745651215149,1.7295,1806.3,1806.2,1.10683]
[1745651216256,8.6669,1806.3,1806.2,1.10683]
[1745651217253,8.6669,1806.3,1806.2,2.82053]
[1745651218148,3.3589,1806.3,1806.2,2.82053]
[1745651220756,7.67351,1806.3,1806.1,1.10688]
[1745651221058,1.6565,1806.2,1806.1,1.10688]
[1745651221754,1.6565,1806.2,1806.0,3.601]
[1745651222064,1.6565,1806.2,1806.0,4.70792]
[1745651222358,8.07136,1806.2,1806.0,3.601]
[1745651222846,2.73019,1806.1,1806.0,3.601]
[1745651223048,1.6233,1806.1,1806.0,3.601]
[1745651223453,1.6233,1806.1,1806.0,4.70795]
[1745651224053,6.9313,1806.1,1806.0,4.70795]
[1745651225159,1.6233,1806.1,1806.0,4.70795]
[1745651226957,6.04411,1806.3,1806.1,1.10685]
[1745651227159,1.6947,1806.2,1806.1,2.79515]
[1745651228361,7.0027,1806.2,1806.1,2.79515]
[1745651229664,8.10953,1806.2,1806.0,4.70791]
[1745651229863,1.6947,1806.1,1806.0,4.70791]
[1745651234157,7.0027,1806.1,1806.0,4.70791]
[1745651238374,5.308,1806.1,1806.0,4.70791]
[1745651238774,5.308,1806.1,1806.0,11.44971]
[1745651239173,6.5575,1806.5,1806.4,1.1067]
[1745651239372,6.5575,1806.5,1806.4,4.6947]
[1745651239873,7.66414,1806.5,1806.4,3.588]
[1745651240275,12.97214,1806.5,1806.4,3.588]
[1745651242780,22.7355,1806.5,1805.5,62.142]
[1745651242976,3.2078,1806.3,1805.9,2.68837]
[1745651243286,4.31471,1806.1,1806.0,3.588]
[1745651243676,5.6433,1806.1,1806.0,4.69495]
[1745651244079,10.9513,1806.1,1806.0,4.69495]
[1745651246582,10.9513,1806.1,1806.0,3.588]
[1745651247282,10.9513,1806.1,1806.0,4.69495]
[1745651247583,10.9513,1806.1,1806.0,3.588]
[1745651247782,12.05824,1806.1,1806.0,3.588]
[1745651252586,1.10701,1805.9,1805.7,1.5983]
[1745651252785,2.4084,1805.8,1805.7,2.70543]
[1745651253093,2.4084,1805.8,1805.7,6.29343]
[1745651253389,5.308,1805.9,1805.8,1.10707]
[1745651253591,5.308,1805.9,1805.8,2.72367]
[1745651268388,5.308,1805.9,1805.6,4.2068]
[1745651268694,1.10762,1804.9,1804.8,7.39726032]
[1745651269088,6.41562,1804.9,1804.8,7.39726032]
[1745651269292,9.77062,1804.9,1804.8,7.39726032]
[1745651269897,8.663,1804.9,1804.8,7.39726032]
[1745651270096,7.8013,1804.9,1804.8,8.50495032]
[1745651270296,7.8013,1804.9,1804.8,10.11605032]
[1745651270497,7.8013,1804.9,1804.8,12.59636032]
[1745651271595,7.8013,1804.9,1804.8,5.1991]
[1745651272399,7.8013,1804.9,1804.8,6.30679]
[1745651273303,5.308,1804.9,1804.8,6.30679]
[1745651274201,3.2078,1805.1,1804.9,1.10758]
[1745651274404,3.2078,1805.1,1805.0,1.6206]
[1745651274999,3.2078,1805.1,1805.0,2.72816]
[1745651275200,8.5158,1805.1,1805.0,2.72816]
[1745651276499,8.5158,1805.1,1805.0,1.6206]
[1745651276698,8.5158,1805.1,1805.0,2.72816]
[1745651277298,8.5158,1805.1,1805.0,1.6206]
[1745651277499,1.10757,1805.0,1804.8,3.588]
[1745651277699,4.54797,1805.0,1804.8,3.588]
[1745651278104,1.746,1804.9,1804.8,3.588]
[1745651279103,7.054,1804.9,1804.8,3.589]
[1745651280102,7.054,1804.9,1804.8,4.69669]
[1745651280511,5.308,1804.9,1804.8,3.589]
[1745651280709,6.9298,1804.9,1804.8,3.589]
[1745651281508,8.03742,1804.9,1804.8,3.589]
[1745651281905,6.9298,1804.9,1804.8,3.589]
[1745651283505,6.9298,1804.9,1804.8,4.69669]
[1745651284310,5.308,1804.9,1804.8,4.69669]
[1745651285114,3.2078,1805.1,1805.0,1.10756]
[1745651285702,3.2078,1805.1,1805.0,3.59176]
[1745651286311,8.5158,1805.1,1805.0,3.59176]
[1745651286911,5.308,1805.1,1805.0,3.59176]
[1745651288311,5.308,1805.1,1804.8,3.589]
[1745651288507,1.698,1805.0,1804.9,1.10762]
[1745651288715,1.10762,1804.9,1804.8,3.589]
[1745651289021,4.31548,1804.9,1804.8,3.589]
[1745651289217,6.01348,1804.9,1804.8,3.589]
[1745651290119,11.32148,1804.9,1804.8,3.589]
[1745651294211,10.2138,1804.9,1804.8,4.69669]
[1745651294413,7.006,1804.9,1804.8,4.69669]
[1745651294620,10.2138,1804.9,1804.8,4.69669]
[1745651294821,11.32142,1804.9,1804.8,4.69669]
[1745651295007,11.32142,1804.9,1804.8,3.589]
[1745651298514,16.0838,1804.9,1804.6,2.71887]
[1745651298714,2.71659,1804.8,1804.7,4.73175]
[1745651299016,1.6089,1804.8,1804.7,4.73175]
[1745651299312,6.9169,1804.8,1804.7,4.73175]
[1745651301025,8.02459,1804.8,1804.7,3.624]
[1745651305223,8.02459,1804.8,1804.7,4.73175]
[1745651305224,6.9169,1804.8,1804.7,4.73175]
[1745651305422,6.9169,1804.8,1804.7,6.44155]
[1745651306217,8.02459,1804.8,1804.7,5.3338]
[1745651306723,6.9169,1804.8,1804.7,6.44155]
[1745651307125,8.02459,1804.8,1804.7,5.3338]
[1745651308925,6.9169,1804.8,1804.7,6.44155]
[1745651309720,6.9169,1804.8,1804.7,5.3338]
[1745651310414,6.9169,1804.8,1804.7,6.44155]
[1745651311526,6.9169,1804.8,1804.7,5.3338]
[1745651311527,8.02459,1804.8,1804.7,5.3338]
[1745651313615,6.9169,1804.8,1804.7,6.44155]
[1745651316230,5.308,1804.8,1804.7,6.44155]
[1745651321332,6.41569,1804.8,1804.7,5.3338]
[1745651321530,5.308,1804.8,1804.7,5.3338]
[1745651321730,5.308,1804.8,1804.7,6.1775]
[1745651322434,7.0259,1804.8,1804.7,6.1775]
[1745651323429,8.13359,1804.8,1804.7,6.1775]
[1745651323629,7.0259,1804.8,1804.7,6.1775]
[1745651324931,7.0259,1804.8,1804.4,4.0607]
[1745651325131,1.10791,1804.5,1804.3,5.2088]
[1745651325437,6.5425,1804.7,1804.3,6.31679]
[1745651325438,1.10784,1804.6,1804.3,6.31679]
[1745651325738,3.59034,1804.6,1804.4,1.5838]
[1745651326130,1.6857,1804.5,1804.4,1.5838]
[1745651327131,6.9937,1804.5,1804.4,1.5838]
[1745651329738,6.9937,1804.5,1804.4,2.69173]
[1745651330534,6.9937,1804.5,1804.4,1.5838]
[1745651331741,6.9937,1804.5,1804.4,2.69173]
[1745651332335,6.9937,1804.5,1804.4,1.5838]
[1745651332535,8.10157,1804.5,1804.4,1.5838]
[1745651333042,8.10157,1804.5,1804.3,3.625]
[1745651333243,2.5406,1804.4,1804.3,4.73299]
[1745651336542,2.5406,1804.4,1804.3,3.625]
[1745651336742,2.5406,1804.4,1804.3,4.73299]
[1745651336937,2.5406,1804.4,1804.3,3.625]
[1745651338137,7.8486,1804.4,1804.3,3.625]
[1745651338339,7.8486,1804.4,1804.3,4.73299]
[1745651338845,8.95653,1804.4,1804.3,3.625]
[1745651339740,7.8486,1804.4,1804.3,4.73299]
[1745651339940,7.8486,1804.4,1804.3,6.35859]
[1745651340750,5.308,1804.4,1804.3,6.35859]